[Event "Titled Tuesday Blitz March 01 Early 2022"]
[White "Shubenkova, Veronika"]
[Black "Estrada Nieto, Julian"]
[WhiteFideId "44124040"]
[BlackFideId "5101018"]
[WhiteElo "1938"]
[BlackElo "2246"]
[Result "1-0"]
[Round "09"]
[TimeControl "180+1"]
[Date "2022.03.01"]
[WhiteClock "0:00:50"]
[BlackClock "0:00:02"]

1. e4 {[%clk 0:03:00]}  e5 {[%clk 0:02:51]} 2. Nf3 {[%clk 0:03:00]}  Nc6 {[%clk 0:02:51]} 3. Bb5 {[%clk 0:03:00]}  a6 {[%clk 0:02:51]} 4. Bxc6 {[%clk 0:03:00]}  dxc6 {[%clk 0:02:50]} 5. O-O {[%clk 0:03:01]}  Bd6 {[%clk 0:02:49]} 6. Re1 {[%clk 0:02:56]}  Ne7 {[%clk 0:02:25]} 7. d4 {[%clk 0:02:53]}  Ng6 {[%clk 0:02:22]} 8. dxe5 {[%clk 0:02:45]}  Nxe5 {[%clk 0:02:22]} 9. Nxe5 {[%clk 0:02:42]}  Bxe5 {[%clk 0:02:22]} 10. Qxd8+ {[%clk 0:02:43]}  Kxd8 {[%clk 0:02:22]} 11. c3 {[%clk 0:02:42]}  Bd7 {[%clk 0:02:09]} 12. f4 {[%clk 0:02:39]}  Bd6 {[%clk 0:02:07]} 13. Be3 {[%clk 0:02:39]}  b6 {[%clk 0:02:04]} 14. e5 {[%clk 0:02:38]}  Be7 {[%clk 0:02:03]} 15. Nd2 {[%clk 0:02:37]}  Kc8 {[%clk 0:02:03]} 16. Nf3 {[%clk 0:02:35]}  Kb7 {[%clk 0:02:02]} 17. Rad1 {[%clk 0:02:34]}  Rad8 {[%clk 0:02:01]} 18. Rd2 {[%clk 0:02:29]}  Be6 {[%clk 0:02:00]} 19. b3 {[%clk 0:02:23]}  a5 {[%clk 0:01:58]} 20. Red1 {[%clk 0:02:21]}  Rxd2 {[%clk 0:01:57]} 21. Rxd2 {[%clk 0:02:21]}  a4 {[%clk 0:01:54]} 22. Nd4 {[%clk 0:02:19]}  axb3 {[%clk 0:01:47]} 23. axb3 {[%clk 0:02:19]}  Bc8 {[%clk 0:01:38]} 24. Kf2 {[%clk 0:02:13]}  Rd8 {[%clk 0:01:37]} 25. h3 {[%clk 0:02:06]}  c5 {[%clk 0:01:35]} 26. Nf3 {[%clk 0:02:05]}  Be6 {[%clk 0:01:25]} 27. c4 {[%clk 0:02:04]}  Ra8 {[%clk 0:01:23]} 28. g4 {[%clk 0:02:01]}  Ra3 {[%clk 0:01:19]} 29. f5 {[%clk 0:01:59]}  Bc8 {[%clk 0:01:18]} 30. Rd3 {[%clk 0:01:57]}  b5 {[%clk 0:01:04]} 31. Ke2 {[%clk 0:01:48]}  Kc6 {[%clk 0:00:54]} 32. Bg5 {[%clk 0:01:43]}  f6 {[%clk 0:00:52]} 33. Bf4 {[%clk 0:01:42]}  Ba6 {[%clk 0:00:47]} 34. Nd2 {[%clk 0:01:35]}  fxe5 {[%clk 0:00:37]} 35. Bxe5 {[%clk 0:01:31]}  Bf6 {[%clk 0:00:37]} 36. Bxf6 {[%clk 0:01:30]}  gxf6 {[%clk 0:00:38]} 37. Ke3 {[%clk 0:01:30]}  bxc4 {[%clk 0:00:29]} 38. bxc4 {[%clk 0:01:28]}  Ra1 {[%clk 0:00:20]} 39. Rc3 {[%clk 0:01:18]}  Re1+ {[%clk 0:00:18]} 40. Kf4 {[%clk 0:01:16]}  Rd1 {[%clk 0:00:17]} 41. Ne4 {[%clk 0:01:16]}  Rd4 {[%clk 0:00:16]} 42. Ke3 {[%clk 0:01:15]}  Rxc4 {[%clk 0:00:15]} 43. Ra3 {[%clk 0:01:13]}  Bb7 {[%clk 0:00:14]} 44. Nxf6 {[%clk 0:01:12]}  Kd6 {[%clk 0:00:11]} 45. Nxh7 {[%clk 0:01:07]}  Re4+ {[%clk 0:00:11]} 46. Kd2 {[%clk 0:01:06]}  Rf4 {[%clk 0:00:10]} 47. Ng5 {[%clk 0:01:05]}  Rf2+ {[%clk 0:00:10]} 48. Kc1 {[%clk 0:01:04]}  Rh2 {[%clk 0:00:09]} 49. Rd3+ {[%clk 0:01:03]}  Ke5 {[%clk 0:00:09]} 50. Nf3+ {[%clk 0:01:03]}  Bxf3 {[%clk 0:00:08]} 51. Rxf3 {[%clk 0:01:04]}  Kf6 {[%clk 0:00:07]} 52. Rc3 {[%clk 0:01:01]}  Kg5 {[%clk 0:00:05]} 53. Rf3 {[%clk 0:00:58]}  Re2 {[%clk 0:00:05]} 54. f6 {[%clk 0:00:57]}  Re8 {[%clk 0:00:05]} 55. Rf5+ {[%clk 0:00:56]}  Kg6 {[%clk 0:00:05]} 56. h4 {[%clk 0:00:56]}  Re4 {[%clk 0:00:04]} 57. h5+ {[%clk 0:00:55]}  Kf7 {[%clk 0:00:04]} 58. g5 {[%clk 0:00:55]}  Rh4 {[%clk 0:00:03]} 59. g6+ {[%clk 0:00:54]}  Ke6 {[%clk 0:00:03]} 60. Rxc5 {[%clk 0:00:52]}  Kxf6 {[%clk 0:00:02]} 61. Kd2 {[%clk 0:00:52]}  Rh2+ {[%clk 0:00:01]} 62. Ke3 {[%clk 0:00:52]}  c6 {[%clk 0:00:01]} 63. Rxc6+ {[%clk 0:00:50]}  Kg5 {[%clk 0:00:02]} 64. g7 {[%clk 0:00:50]} 1-0


[Site "https://www.chess.com"]

[Event "Titled Tuesday Blitz March 01 Early 2022"]
[White "Sikorova, Olga"]
[Black "Shtyka, Sergey"]
[WhiteFideId "307033"]
[BlackFideId "4138465"]
[WhiteElo "2187"]
[BlackElo "2014"]
[Result "0-1"]
[Round "09"]
[TimeControl "180+1"]
[Date "2022.03.01"]
[WhiteClock "0:01:50"]
[BlackClock "0:00:43"]

1. c4 {[%clk 0:03:00]}  c5 {[%clk 0:02:48]} 2. g3 {[%clk 0:02:59]}  Nc6 {[%clk 0:02:47]} 3. Bg2 {[%clk 0:02:58]}  g6 {[%clk 0:02:48]} 4. Nc3 {[%clk 0:02:57]}  Bg7 {[%clk 0:02:48]} 5. a3 {[%clk 0:02:58]}  Nf6 {[%clk 0:02:46]} 6. e4 {[%clk 0:02:55]}  O-O {[%clk 0:02:45]} 7. Nge2 {[%clk 0:02:55]}  d6 {[%clk 0:02:45]} 8. O-O {[%clk 0:02:53]}  Be6 {[%clk 0:02:43]} 9. d3 {[%clk 0:02:53]}  Qc8 {[%clk 0:02:42]} 10. Re1 {[%clk 0:02:52]}  Bh3 {[%clk 0:02:41]} 11. Bh1 {[%clk 0:02:52]}  Nd4 {[%clk 0:02:37]} 12. Nxd4 {[%clk 0:02:52]}  cxd4 {[%clk 0:02:37]} 13. Ne2 {[%clk 0:02:52]}  e5 {[%clk 0:02:37]} 14. b4 {[%clk 0:02:51]}  Ng4 {[%clk 0:02:34]} 15. f3 {[%clk 0:02:48]}  Ne3 {[%clk 0:02:31]} 16. Bxe3 {[%clk 0:02:48]}  dxe3 {[%clk 0:02:32]} 17. Nc3 {[%clk 0:02:48]}  f5 {[%clk 0:02:30]} 18. Nd5 {[%clk 0:02:46]}  Qd7 {[%clk 0:02:23]} 19. Nxe3 {[%clk 0:02:43]}  f4 {[%clk 0:02:20]} 20. Nd5 {[%clk 0:02:43]}  g5 {[%clk 0:02:05]} 21. g4 {[%clk 0:02:41]}  h5 {[%clk 0:02:04]} 22. Bg2 {[%clk 0:02:40]}  hxg4 {[%clk 0:02:02]} 23. Bxh3 {[%clk 0:02:39]}  gxh3 {[%clk 0:02:02]} 24. Kh1 {[%clk 0:02:39]}  Kf7 {[%clk 0:02:01]} 25. Rg1 {[%clk 0:02:39]}  Bf6 {[%clk 0:02:01]} 26. Rg4 {[%clk 0:02:37]}  Rh8 {[%clk 0:01:57]} 27. Qb3 {[%clk 0:02:33]}  Rh4 {[%clk 0:01:49]} 28. Rag1 {[%clk 0:02:30]}  Rxg4 {[%clk 0:01:47]} 29. Rxg4 {[%clk 0:02:30]}  Kg6 {[%clk 0:01:39]} 30. Qd1 {[%clk 0:02:22]}  Rh8 {[%clk 0:01:36]} 31. d4 {[%clk 0:02:19]}  exd4 {[%clk 0:01:26]} 32. Nxf4+ {[%clk 0:02:18]}  Kf7 {[%clk 0:01:26]} 33. Nd5 {[%clk 0:02:15]}  Rh4 {[%clk 0:01:24]} 34. Rxh4 {[%clk 0:02:12]}  gxh4 {[%clk 0:01:25]} 35. f4 {[%clk 0:02:12]}  Bg7 {[%clk 0:01:05]} 36. Qh5+ {[%clk 0:02:09]}  Kg8 {[%clk 0:01:04]} 37. Qxh4 {[%clk 0:02:00]}  Qe6 {[%clk 0:01:01]} 38. Qe1 {[%clk 0:01:55]}  d3 {[%clk 0:00:58]} 39. Kg1 {[%clk 0:01:50]}  Qg4+ {[%clk 0:00:43]} 0-1


[Site "https://www.chess.com"]

[Event "Titled Tuesday Blitz March 01 Early 2022"]
[White "Silva, Mariana Sofia T."]
[Black "Jakubowska, Anna"]
[WhiteFideId "1911899"]
[BlackFideId "1121952"]
[WhiteElo "1825"]
[BlackElo "1924"]
[Result "0-1"]
[Round "09"]
[TimeControl "180+1"]
[Date "2022.03.01"]
[WhiteClock "0:00:10"]
[BlackClock "0:00:15"]

1. Nf3 {[%clk 0:02:57]}  f5 {[%clk 0:02:54]} 2. d3 {[%clk 0:02:56]}  g6 {[%clk 0:02:48]} 3. e4 {[%clk 0:02:53]}  d6 {[%clk 0:02:48]} 4. Nc3 {[%clk 0:02:51]}  Bg7 {[%clk 0:02:47]} 5. g3 {[%clk 0:02:49]}  Nf6 {[%clk 0:02:46]} 6. Bg2 {[%clk 0:02:44]}  O-O {[%clk 0:02:45]} 7. O-O {[%clk 0:02:43]}  c6 {[%clk 0:02:43]} 8. e5 {[%clk 0:02:21]}  Ng4 {[%clk 0:02:37]} 9. exd6 {[%clk 0:02:10]}  exd6 {[%clk 0:02:38]} 10. Bg5 {[%clk 0:02:06]}  Qc7 {[%clk 0:02:35]} 11. Re1 {[%clk 0:02:04]}  Nd7 {[%clk 0:02:22]} 12. Qd2 {[%clk 0:01:50]}  h6 {[%clk 0:02:17]} 13. Be7 {[%clk 0:01:44]}  Rf7 {[%clk 0:02:13]} 14. Qf4 {[%clk 0:01:35]}  Nde5 {[%clk 0:02:05]} 15. Nxe5 {[%clk 0:01:32]}  dxe5 {[%clk 0:02:02]} 16. Qc4 {[%clk 0:01:05]}  Qxe7 {[%clk 0:01:57]} 17. h3 {[%clk 0:01:04]}  Be6 {[%clk 0:01:47]} 18. Qa4 {[%clk 0:01:00]}  Nf6 {[%clk 0:01:42]} 19. Rxe5 {[%clk 0:00:59]}  Nd7 {[%clk 0:01:38]} 20. Re2 {[%clk 0:00:57]}  Qd6 {[%clk 0:01:37]} 21. Rae1 {[%clk 0:00:51]}  Nc5 {[%clk 0:01:35]} 22. Qa3 {[%clk 0:00:46]}  Bd7 {[%clk 0:01:24]} 23. Na4 {[%clk 0:00:31]}  Bf8 {[%clk 0:01:24]} 24. Re5 {[%clk 0:00:15]}  Nxa4 {[%clk 0:01:13]} 25. Qxa4 {[%clk 0:00:15]}  Bg7 {[%clk 0:01:13]} 26. R5e2 {[%clk 0:00:14]}  Bd4 {[%clk 0:01:09]} 27. Qb3 {[%clk 0:00:14]}  Kg7 {[%clk 0:01:05]} 28. c3 {[%clk 0:00:13]}  Bb6 {[%clk 0:01:04]} 29. d4 {[%clk 0:00:13]}  f4 {[%clk 0:00:59]} 30. Re5 {[%clk 0:00:13]}  fxg3 {[%clk 0:00:57]} 31. fxg3 {[%clk 0:00:14]}  Raf8 {[%clk 0:00:55]} 32. Qc2 {[%clk 0:00:14]}  Bf5 {[%clk 0:00:54]} 33. Qe2 {[%clk 0:00:13]}  Qd7 {[%clk 0:00:48]} 34. g4 {[%clk 0:00:12]}  Bc7 {[%clk 0:00:36]} 35. gxf5 {[%clk 0:00:12]}  Bxe5 {[%clk 0:00:36]} 36. Qxe5+ {[%clk 0:00:13]}  Rf6 {[%clk 0:00:26]} 37. fxg6 {[%clk 0:00:12]}  Kxg6 {[%clk 0:00:19]} 38. Be4+ {[%clk 0:00:12]}  Kg7 {[%clk 0:00:18]} 39. Kh2 {[%clk 0:00:09]}  Kh8 {[%clk 0:00:18]} 40. Bd3 {[%clk 0:00:07]}  Qd6 {[%clk 0:00:17]} 41. Qxd6 {[%clk 0:00:07]}  Rxd6 {[%clk 0:00:18]} 42. Re7 {[%clk 0:00:07]}  Rb8 {[%clk 0:00:17]} 43. Rh7+ {[%clk 0:00:07]}  Kg8 {[%clk 0:00:17]} 44. Re7 {[%clk 0:00:07]}  a6 {[%clk 0:00:14]} 45. Kg3 {[%clk 0:00:07]}  b5 {[%clk 0:00:14]} 46. h4 {[%clk 0:00:07]}  a5 {[%clk 0:00:14]} 47. h5 {[%clk 0:00:07]}  Kf8 {[%clk 0:00:14]} 48. Bg6 {[%clk 0:00:08]}  Kxe7 {[%clk 0:00:13]} 49. Kf4 {[%clk 0:00:08]}  Rf8+ {[%clk 0:00:13]} 50. Ke5 {[%clk 0:00:09]}  Rd5+ {[%clk 0:00:13]} 51. Ke4 {[%clk 0:00:09]}  Kd6 {[%clk 0:00:13]} 52. Bf5 {[%clk 0:00:10]}  Rdxf5 {[%clk 0:00:13]} 53. a4 {[%clk 0:00:10]}  Rxh5 {[%clk 0:00:14]} 54. Ke3 {[%clk 0:00:10]}  Rh3+ {[%clk 0:00:14]} 55. Ke4 {[%clk 0:00:10]}  bxa4 {[%clk 0:00:14]} 56. d5 {[%clk 0:00:09]}  Re8+ {[%clk 0:00:15]} 57. Kd4 {[%clk 0:00:10]}  Rh4+ {[%clk 0:00:15]} 58. Kd3 {[%clk 0:00:10]}  cxd5 {[%clk 0:00:16]} 59. Kc2 {[%clk 0:00:10]}  Rh2+ {[%clk 0:00:16]} 60. Kd3 {[%clk 0:00:10]}  Rxb2 {[%clk 0:00:14]} 61. c4 {[%clk 0:00:09]}  dxc4+ {[%clk 0:00:15]} 62. Kxc4 {[%clk 0:00:09]}  Rc8+ {[%clk 0:00:15]} 63. Kd3 {[%clk 0:00:09]}  Rc5 {[%clk 0:00:14]} 64. Kd4 {[%clk 0:00:09]}  Rb4+ {[%clk 0:00:14]} 65. Kd3 {[%clk 0:00:10]}  a3 {[%clk 0:00:15]} 66. Kd2 {[%clk 0:00:10]}  Rd4+ {[%clk 0:00:15]} 0-1


[Site "https://www.chess.com"]

[Event "Titled Tuesday Blitz March 01 Early 2022"]
[White "Suleymanli, Aydin"]
[Black "Muradov, Soltan"]
[WhiteFideId "13413937"]
[BlackFideId "14002108"]
[WhiteElo "2529"]
[BlackElo "1854"]
[Result "1-0"]
[Round "09"]
[TimeControl "180+1"]
[Date "2022.03.01"]
[WhiteClock "0:00:07"]
[BlackClock "0:00:01"]

1. e4 {[%clk 0:03:00]}  e5 {[%clk 0:02:58]} 2. Nf3 {[%clk 0:03:00]}  Nf6 {[%clk 0:02:58]} 3. Nc3 {[%clk 0:03:00]}  Bb4 {[%clk 0:02:53]} 4. d3 {[%clk 0:02:52]}  O-O {[%clk 0:02:47]} 5. g3 {[%clk 0:02:46]}  d5 {[%clk 0:02:38]} 6. exd5 {[%clk 0:02:44]}  Nxd5 {[%clk 0:02:37]} 7. Bd2 {[%clk 0:02:44]}  Nxc3 {[%clk 0:02:31]} 8. bxc3 {[%clk 0:02:44]}  Bd6 {[%clk 0:02:32]} 9. Bg2 {[%clk 0:02:44]}  Nc6 {[%clk 0:02:32]} 10. O-O {[%clk 0:02:44]}  Bg4 {[%clk 0:02:31]} 11. Qb1 {[%clk 0:02:42]}  Rb8 {[%clk 0:02:29]} 12. Re1 {[%clk 0:02:39]}  Qf6 {[%clk 0:02:27]} 13. Ng5 {[%clk 0:02:38]}  Qg6 {[%clk 0:01:58]} 14. Qb5 {[%clk 0:02:24]}  Be7 {[%clk 0:01:48]} 15. Nf3 {[%clk 0:01:58]}  Bd6 {[%clk 0:01:39]} 16. Rab1 {[%clk 0:01:48]}  Qh5 {[%clk 0:01:30]} 17. Nh4 {[%clk 0:01:29]}  g5 {[%clk 0:00:38]} 18. h3 {[%clk 0:01:26]}  Bxh3 {[%clk 0:00:29]} 19. Bxh3 {[%clk 0:01:02]}  gxh4 {[%clk 0:00:29]} 20. g4 {[%clk 0:00:55]}  Qg6 {[%clk 0:00:29]} 21. Kh1 {[%clk 0:00:51]}  Kh8 {[%clk 0:00:19]} 22. Re4 {[%clk 0:00:47]}  Qf6 {[%clk 0:00:19]} 23. Rf1 {[%clk 0:00:41]}  Rg8 {[%clk 0:00:19]} 24. f4 {[%clk 0:00:36]}  exf4 {[%clk 0:00:16]} 25. d4 {[%clk 0:00:35]}  Rbe8 {[%clk 0:00:11]} 26. Rxe8 {[%clk 0:00:32]}  Rxe8 {[%clk 0:00:12]} 27. Qxb7 {[%clk 0:00:32]}  Re2 {[%clk 0:00:09]} 28. g5 {[%clk 0:00:15]}  Qe7 {[%clk 0:00:03]} 29. Qa8+ {[%clk 0:00:11]}  Kg7 {[%clk 0:00:03]} 30. Qxc6 {[%clk 0:00:12]}  Rxd2 {[%clk 0:00:03]} 31. Qf3 {[%clk 0:00:11]}  Rxc2 {[%clk 0:00:02]} 32. Qh5 {[%clk 0:00:11]}  Qe4+ {[%clk 0:00:01]} 33. Rf3 {[%clk 0:00:07]} 1-0


[Site "https://www.chess.com"]

[Event "Titled Tuesday Blitz March 01 Early 2022"]
[White "Todorovic, Bojan"]
[Black "Mena, Ailen Oriana"]
[WhiteFideId "917087"]
[BlackFideId "3902773"]
[WhiteElo "2266"]
[BlackElo "1534"]
[Result "1-0"]
[Round "09"]
[TimeControl "180+1"]
[Date "2022.03.01"]
[WhiteClock "0:01:33"]
[BlackClock "0:00:38"]

1. Nf3 {[%clk 0:02:58]}  Nf6 {[%clk 0:02:59]} 2. c4 {[%clk 0:02:57]}  e6 {[%clk 0:02:58]} 3. g3 {[%clk 0:02:55]}  d5 {[%clk 0:02:54]} 4. Bg2 {[%clk 0:02:55]}  Be7 {[%clk 0:02:54]} 5. O-O {[%clk 0:02:54]}  O-O {[%clk 0:02:53]} 6. b3 {[%clk 0:02:53]}  c5 {[%clk 0:02:54]} 7. Bb2 {[%clk 0:02:51]}  Nc6 {[%clk 0:02:54]} 8. e3 {[%clk 0:02:50]}  b6 {[%clk 0:02:50]} 9. Nc3 {[%clk 0:02:47]}  Bb7 {[%clk 0:02:45]} 10. cxd5 {[%clk 0:02:45]}  exd5 {[%clk 0:02:44]} 11. d4 {[%clk 0:02:43]}  Rc8 {[%clk 0:02:34]} 12. Rc1 {[%clk 0:02:28]}  Qd7 {[%clk 0:02:15]} 13. Ne5 {[%clk 0:02:23]}  Qc7 {[%clk 0:01:56]} 14. Nxc6 {[%clk 0:02:18]}  Bxc6 {[%clk 0:01:57]} 15. dxc5 {[%clk 0:02:14]}  Bxc5 {[%clk 0:01:58]} 16. Nxd5 {[%clk 0:02:03]}  Nxd5 {[%clk 0:01:52]} 17. Bxd5 {[%clk 0:02:02]}  Rfd8 {[%clk 0:01:48]} 18. Qg4 {[%clk 0:01:56]}  g6 {[%clk 0:01:25]} 19. Bxc6 {[%clk 0:01:49]}  Qxc6 {[%clk 0:01:26]} 20. b4 {[%clk 0:01:48]}  h5 {[%clk 0:01:10]} 21. Qc4 {[%clk 0:01:38]}  Rd5 {[%clk 0:00:54]} 22. bxc5 {[%clk 0:01:37]}  Rxc5 {[%clk 0:00:53]} 23. Qd4 {[%clk 0:01:37]}  f6 {[%clk 0:00:41]} 24. Rxc5 {[%clk 0:01:35]}  Qxc5 {[%clk 0:00:38]} 25. Rc1 {[%clk 0:01:33]} 1-0


[Site "https://www.chess.com"]

[Event "Titled Tuesday Blitz March 01 Early 2022"]
[White "Tologon tegin, Semetei"]
[Black "Bambino Filho, Antonio Carlos"]
[WhiteFideId "13800574"]
[BlackFideId "2113163"]
[WhiteElo "2258"]
[BlackElo "2457"]
[Result "1-0"]
[Round "09"]
[TimeControl "180+1"]
[Date "2022.03.01"]
[WhiteClock "0:01:31"]
[BlackClock "0:01:15"]

1. e4 {[%clk 0:03:00]}  c5 {[%clk 0:02:59]} 2. Nc3 {[%clk 0:03:00]}  Nc6 {[%clk 0:02:58]} 3. Bb5 {[%clk 0:03:00]}  Nd4 {[%clk 0:02:57]} 4. Nf3 {[%clk 0:02:59]}  Nxb5 {[%clk 0:02:54]} 5. Nxb5 {[%clk 0:02:58]}  d6 {[%clk 0:02:52]} 6. d4 {[%clk 0:02:57]}  cxd4 {[%clk 0:02:52]} 7. Nbxd4 {[%clk 0:02:51]}  Nf6 {[%clk 0:02:53]} 8. Qd3 {[%clk 0:02:51]}  g6 {[%clk 0:02:50]} 9. O-O {[%clk 0:02:50]}  Bg7 {[%clk 0:02:51]} 10. h3 {[%clk 0:02:44]}  O-O {[%clk 0:02:51]} 11. c4 {[%clk 0:02:40]}  b6 {[%clk 0:02:51]} 12. b3 {[%clk 0:02:37]}  Bb7 {[%clk 0:02:49]} 13. Re1 {[%clk 0:02:36]}  e6 {[%clk 0:02:41]} 14. Ba3 {[%clk 0:02:35]}  Re8 {[%clk 0:02:42]} 15. Rad1 {[%clk 0:02:30]}  d5 {[%clk 0:02:42]} 16. exd5 {[%clk 0:02:27]}  exd5 {[%clk 0:02:43]} 17. Rxe8+ {[%clk 0:02:27]}  Qxe8 {[%clk 0:02:41]} 18. Nb5 {[%clk 0:02:10]}  dxc4 {[%clk 0:02:41]} 19. bxc4 {[%clk 0:02:11]}  Qc6 {[%clk 0:02:18]} 20. Nd6 {[%clk 0:02:00]}  Rd8 {[%clk 0:02:10]} 21. Qf1 {[%clk 0:01:59]}  Ba8 {[%clk 0:02:06]} 22. Ne5 {[%clk 0:01:59]}  Qa4 {[%clk 0:01:56]} 23. Nexf7 {[%clk 0:01:54]}  Rd7 {[%clk 0:01:47]} 24. Ne5 {[%clk 0:01:44]}  Qxa3 {[%clk 0:01:35]} 25. Nxd7 {[%clk 0:01:43]}  Nxd7 {[%clk 0:01:35]} 26. Qe2 {[%clk 0:01:38]}  Nf8 {[%clk 0:01:27]} 27. Qe8 {[%clk 0:01:33]}  Qa4 {[%clk 0:01:15]} 28. Qxa4 {[%clk 0:01:31]} 1-0


[Site "https://www.chess.com"]

[Event "Titled Tuesday Blitz March 01 Early 2022"]
[White "Topalov, Aleksandar"]
[Black "Vantika, Agrawal"]
[WhiteFideId "925659"]
[BlackFideId "25050389"]
[WhiteElo "2098"]
[BlackElo "2075"]
[Result "0-1"]
[Round "09"]
[TimeControl "180+1"]
[Date "2022.03.01"]
[WhiteClock "0:00:59"]
[BlackClock "0:00:54"]

1. b3 {[%clk 0:03:00]}  Nf6 {[%clk 0:02:58]} 2. Bb2 {[%clk 0:03:00]}  g6 {[%clk 0:02:59]} 3. Bxf6 {[%clk 0:03:00]}  exf6 {[%clk 0:03:00]} 4. c4 {[%clk 0:03:01]}  d5 {[%clk 0:03:00]} 5. cxd5 {[%clk 0:03:00]}  Qxd5 {[%clk 0:03:01]} 6. Nc3 {[%clk 0:03:01]}  Qd8 {[%clk 0:03:02]} 7. a3 {[%clk 0:02:58]}  c6 {[%clk 0:03:01]} 8. e3 {[%clk 0:02:58]}  Bd6 {[%clk 0:03:02]} 9. Nge2 {[%clk 0:02:56]}  O-O {[%clk 0:03:02]} 10. g3 {[%clk 0:02:56]}  f5 {[%clk 0:03:03]} 11. Bg2 {[%clk 0:02:56]}  Nd7 {[%clk 0:03:03]} 12. d4 {[%clk 0:02:55]}  Nf6 {[%clk 0:03:04]} 13. O-O {[%clk 0:02:55]}  Qe7 {[%clk 0:03:04]} 14. b4 {[%clk 0:02:55]}  Rd8 {[%clk 0:03:03]} 15. Qc2 {[%clk 0:02:41]}  h5 {[%clk 0:03:02]} 16. Rfd1 {[%clk 0:02:36]}  h4 {[%clk 0:02:45]} 17. Na4 {[%clk 0:02:34]}  Be6 {[%clk 0:02:43]} 18. Nc5 {[%clk 0:02:34]}  Bd5 {[%clk 0:02:42]} 19. Nf4 {[%clk 0:02:14]}  Bxf4 {[%clk 0:02:40]} 20. gxf4 {[%clk 0:02:11]}  Bxg2 {[%clk 0:02:39]} 21. Kxg2 {[%clk 0:02:12]}  Ne4 {[%clk 0:02:29]} 22. Nxe4 {[%clk 0:02:08]}  fxe4 {[%clk 0:02:30]} 23. h3 {[%clk 0:02:06]}  Rd5 {[%clk 0:02:30]} 24. Rg1 {[%clk 0:02:02]}  a5 {[%clk 0:02:27]} 25. bxa5 {[%clk 0:01:52]}  Rdxa5 {[%clk 0:02:25]} 26. a4 {[%clk 0:01:52]}  Qe6 {[%clk 0:02:16]} 27. Qb2 {[%clk 0:01:43]}  Qd7 {[%clk 0:01:56]} 28. Kh2 {[%clk 0:01:41]}  Rxa4 {[%clk 0:01:52]} 29. Rxa4 {[%clk 0:01:37]}  Rxa4 {[%clk 0:01:53]} 30. f5 {[%clk 0:01:25]}  Qxf5 {[%clk 0:01:49]} 31. Qxb7 {[%clk 0:01:21]}  Qxf2+ {[%clk 0:01:44]} 32. Rg2 {[%clk 0:01:21]}  Qxe3 {[%clk 0:01:10]} 33. Qb8+ {[%clk 0:01:18]}  Kh7 {[%clk 0:01:01]} 34. Qc7 {[%clk 0:01:18]}  Qf3 {[%clk 0:00:58]} 35. Qe5 {[%clk 0:00:59]}  Ra3 {[%clk 0:00:54]} 0-1


[Site "https://www.chess.com"]

[Event "Titled Tuesday Blitz March 01 Early 2022"]
[White "Tsvetkov, Andrey"]
[Black "Zheenbekov, Nurgazy"]
[WhiteFideId "34139360"]
[BlackFideId "13800485"]
[WhiteElo "2280"]
[BlackElo "1959"]
[Result "1-0"]
[Round "09"]
[TimeControl "180+1"]
[Date "2022.03.01"]
[WhiteClock "0:01:13"]
[BlackClock "0:00:19"]

1. d4 {[%clk 0:03:00]}  Nf6 {[%clk 0:02:55]} 2. c4 {[%clk 0:03:01]}  e6 {[%clk 0:02:55]} 3. Nc3 {[%clk 0:03:00]}  Bb4 {[%clk 0:02:54]} 4. f3 {[%clk 0:03:01]}  d5 {[%clk 0:02:54]} 5. a3 {[%clk 0:03:01]}  Bxc3+ {[%clk 0:02:54]} 6. bxc3 {[%clk 0:03:02]}  O-O {[%clk 0:02:53]} 7. cxd5 {[%clk 0:03:02]}  exd5 {[%clk 0:02:53]} 8. e3 {[%clk 0:03:03]}  c5 {[%clk 0:02:52]} 9. Bd3 {[%clk 0:03:03]}  Nc6 {[%clk 0:02:52]} 10. Ne2 {[%clk 0:03:04]}  Re8 {[%clk 0:02:40]} 11. O-O {[%clk 0:03:03]}  b6 {[%clk 0:02:38]} 12. Ng3 {[%clk 0:03:03]}  a5 {[%clk 0:02:15]} 13. Ra2 {[%clk 0:03:01]}  Ba6 {[%clk 0:02:15]} 14. Re2 {[%clk 0:03:01]}  Bxd3 {[%clk 0:02:10]} 15. Qxd3 {[%clk 0:03:02]}  a4 {[%clk 0:02:11]} 16. Bb2 {[%clk 0:02:56]}  Na5 {[%clk 0:02:10]} 17. e4 {[%clk 0:02:55]}  Nc4 {[%clk 0:01:57]} 18. e5 {[%clk 0:02:42]}  Nd7 {[%clk 0:01:52]} 19. Bc1 {[%clk 0:02:41]}  g6 {[%clk 0:01:32]} 20. f4 {[%clk 0:02:25]}  f5 {[%clk 0:01:31]} 21. Nxf5 {[%clk 0:02:24]}  gxf5 {[%clk 0:01:30]} 22. Qxf5 {[%clk 0:02:24]}  Nf8 {[%clk 0:01:30]} 23. e6 {[%clk 0:02:17]}  Ng6 {[%clk 0:01:17]} 24. Qf7+ {[%clk 0:02:06]}  Kh8 {[%clk 0:01:16]} 25. f5 {[%clk 0:02:05]}  Nd6 {[%clk 0:01:12]} 26. fxg6 {[%clk 0:01:45]}  Nxf7 {[%clk 0:01:10]} 27. gxf7 {[%clk 0:01:46]}  cxd4 {[%clk 0:00:56]} 28. cxd4 {[%clk 0:01:41]}  Qh4 {[%clk 0:00:39]} 29. Bf4 {[%clk 0:01:28]}  h6 {[%clk 0:00:39]} 30. Be5+ {[%clk 0:01:19]}  Kh7 {[%clk 0:00:39]} 31. fxe8=Q {[%clk 0:01:19]}  Rxe8 {[%clk 0:00:38]} 32. Rf7+ {[%clk 0:01:20]}  Kg6 {[%clk 0:00:26]} 33. Rg7+ {[%clk 0:01:12]}  Kf5 {[%clk 0:00:25]} 34. g4+ {[%clk 0:01:12]}  Kxe6 {[%clk 0:00:19]} 35. Bg3+ {[%clk 0:01:13]} 1-0


[Site "https://www.chess.com"]

[Event "Titled Tuesday Blitz March 01 Early 2022"]
[White "Tymrakiewicz, Rafal"]
[Black "Bintang, Rasyid A. Hidayat"]
[WhiteFideId "1108832"]
[BlackFideId "7105355"]
[WhiteElo "2205"]
[BlackElo "2364"]
[Result "1-0"]
[Round "09"]
[TimeControl "180+1"]
[Date "2022.03.01"]
[WhiteClock "0:01:56"]
[BlackClock "0:01:38"]

1. d4 {[%clk 0:03:00]}  d5 {[%clk 0:03:00]} 2. Bg5 {[%clk 0:02:59]}  Nf6 {[%clk 0:02:55]} 3. e3 {[%clk 0:02:58]}  h6 {[%clk 0:02:54]} 4. Bxf6 {[%clk 0:02:54]}  exf6 {[%clk 0:02:54]} 5. c4 {[%clk 0:02:54]}  dxc4 {[%clk 0:02:53]} 6. Bxc4 {[%clk 0:02:53]}  Bd6 {[%clk 0:02:53]} 7. Nf3 {[%clk 0:02:44]}  O-O {[%clk 0:02:52]} 8. O-O {[%clk 0:02:43]}  Nd7 {[%clk 0:02:46]} 9. Nc3 {[%clk 0:02:36]}  a6 {[%clk 0:02:44]} 10. Bb3 {[%clk 0:02:33]}  Nb6 {[%clk 0:02:42]} 11. Rc1 {[%clk 0:02:32]}  Bg4 {[%clk 0:02:41]} 12. h3 {[%clk 0:02:18]}  Bh5 {[%clk 0:02:38]} 13. Qd3 {[%clk 0:02:16]}  Bg6 {[%clk 0:02:37]} 14. Qxg6 {[%clk 0:02:15]}  Qe8 {[%clk 0:02:13]} 15. Qf5 {[%clk 0:02:12]}  a5 {[%clk 0:02:03]} 16. a3 {[%clk 0:02:11]}  a4 {[%clk 0:02:03]} 17. Ba2 {[%clk 0:02:11]}  Qc6 {[%clk 0:02:00]} 18. Ne4 {[%clk 0:02:07]}  Qe8 {[%clk 0:01:43]} 19. Nxf6+ {[%clk 0:02:06]}  gxf6 {[%clk 0:01:38]} 20. Bb1 {[%clk 0:01:56]} 1-0


[Site "https://www.chess.com"]